Cogmind - Beta 17 @@@ ROGUE MODE // 2026.07.04 @ 03:18:22 Player: TheSkyeDoctor Result: Destroyed by Y-64 Sentinel with KE Penetrator Performance ------------- Evolutions (5) 2500 Regions Visited (7) 1400 Robots Destroyed (73) 365 Value Destroyed (2052) 2052 Prototype IDs (7) 140 Alien Tech Used (0) 0 Bonus (11) 11 TOTAL SCORE: 6468 Bonus ------- High Alert Combat Kills 11 Cogmind --------- Core Integrity 0/1000 Matter 300/300 Energy 200/200 System Corruption 16% Temperature Cool (0) Movement Core (450) Ox8 Location -5/Factory Parts ------- > --- POWER (2) -------- Micro Fission Core Micro Fission Core > --- PROPULSION (6) --- (None) > --- UTILITY (7) ------ Medium Storage Unit Advanced Weight Redist. System Advanced Signal Interpreter Advanced ECM Suite Advanced Hacking Suite > --- WEAPON (2) ------- Shock Maul > --- INVENTORY (10) --- Advanced Terrain Scan Processor Peak State ------------ > --- POWER ------------ Light Deuterium Engine Light Deuterium Engine > --- PROPULSION ------- Cooled VTOL Module Cooled VTOL Module Cooled VTOL Module Cooled VTOL Module Field Propulsion Drive Field Propulsion Drive > --- UTILITY ---------- Medium Storage Unit Improved Matter Compressor Advanced Weight Redist. System Advanced Signal Interpreter Advanced Targeting Computer Improved Melee Analysis Suite Improved Light Armor Plating > --- WEAPON ----------- Mini Assault Cannon Power Maul > --- INVENTORY -------- Xenon Bombardment Thruster Xenon Bombardment Thruster Advanced Terrain Scan Processor Advanced ECM Suite Hardened Light Armor Plating Improved Medium Armor Plating Mini Assault Cannon Missile Launcher Plasma Cutter Shock Maul [Rating: 76] Favorites ----------- Power Light Deuterium Engine Engine Light Deuterium Engine Power Core Light Nuclear Core Propulsion Cooled VTOL Module Wheel Wheel Flight Unit Cooled VTOL Module Utility Medium Storage Unit Device Advanced Weight Redist. System Storage Medium Storage Unit Processor Signal Interpreter Hackware Advanced Hacking Suite Protection Improved Light Armor Plating Weapon Mini Assault Cannon Energy Gun Medium Laser Energy Cannon Advanced Beam Cannon Ballistic Gun Assault Rifle Ballistic Cannon Mini Assault Cannon Launcher Mini Grenade Launcher Impact Weapon Power Maul Build | -11 -10 -9 -9 -8 -7 -6 -5 ------- Run | Yrd Mat Mat Min Mat Fac Fac Fac Slots Evolved 10 | . . 2 . 2 2 2 2 Power 1 | . . . . . . 1 . Propulsion 4 | . . 2 . . 2 . . Utility 5 | . . . . 2 . 1 2 Weapon . | . . . . . . . . Parts Attached 69 | 8 10 4 . 13 12 4 18 Power 14 | 2 1 1 . 3 3 1 3 Engine 10 | 2 . 1 . 3 3 1 . Core 4 | . 1 . . . . . 3 Reactor . | . . . . . . . . Propulsion 23 | 2 6 . . 6 5 . 4 Treads . | . . . . . . . . Leg . | . . . . . . . . Wheel 4 | 2 2 . . . . . . Hover . | . . . . . . . . Flight 19 | . 4 . . 6 5 . 4 Utility 21 | 2 2 . . 3 2 2 10 Device 7 | 1 . . . 2 . 2 2 Storage 4 | 1 1 . . . . . 2 Processor 5 | . 1 . . 1 1 . 2 Hackware 1 | . . . . . . . 1 Protection 4 | . . . . . 1 . 3 Artifact . | . . . . . . . . Weapon 11 | 2 1 3 . 1 2 1 1 Energy Gun 3 | 1 1 . . 1 . . . Energy Cannon 2 | . . 2 . . . . . Ballistic Gun 1 | 1 . . . . . . . Ballistic Cannon 1 | . . . . . 1 . . Launcher 2 | . . 1 . . . . 1 Special Weapon . | . . . . . . . . Impact Weapon 2 | . . . . . 1 1 . Slashing Weapon . | . . . . . . . . Piercing Weapon . | . . . . . . . . Special Melee Weapon . | . . . . . . . . Unidentified Prototypes 7 | . . 1 . 1 3 1 1 Corrupted Parts 1 | . . . . . . . 1 System Corruption 3 | . . . . . . . 3 Parts Lost 42 | . 9 1 . 8 3 1 20 Power 6 | . 1 . . 1 1 . 3 Propulsion 18 | . 4 . . 6 . . 8 Utility 10 | . 1 . . 1 1 1 6 Weapon 8 | . 3 1 . . 1 . 3 Highest Loss Streak 10 | . 6 1 . 7 3 1 10 To Critical Strikes . | . . . . . . . . Average Backups 7 | 2 6 4 5 5 9 9 8 Power . | . 1 1 1 1 1 . . Propulsion 1 | . 3 1 2 . . 1 1 Utility 2 | . 1 1 1 1 5 4 3 Weapon 1 | . 1 . . . 1 2 2 Tool/Special . | . . . . . . . . Unused Backups 9 | . . . . 1 2 2 4 Power 1 | . . . . . . 1 . Propulsion . | . . . . . . . . Utility 5 | . . . . 1 1 1 2 Weapon 2 | . . . . . 1 . 1 Tool/Special 1 | . . . . . . . 1 Average Slot Usage (%) 84 | . 97 52 66 80 71 98 86 Engine 6 | . 12 1 11 4 3 13 3 Core 1 | . . . . . . . 2 Wheel 2 | . 4 11 11 . . . . Flight 24 | . 22 . . 24 26 40 30 Device 7 | . 6 . . 8 4 5 11 Storage 8 | . 14 11 11 9 7 6 4 Processor 12 | . 6 11 11 17 15 13 12 Protection 2 | . . . . . 2 6 6 Energy Gun 3 | . 13 . . 3 . . . Energy Cannon 1 | . . 9 11 3 . . . Ballistic Gun 3 | . 13 . . . . . . Ballistic Cannon 1 | . . . . . 2 6 4 Launcher 2 | . . 9 11 9 4 . . Impact Weapon 2 | . . . . . 4 6 4 Peak Build Rating 76 | 7 10 10 10 19 52 60 76 Average Rating 31 | 5 7 6 10 14 32 58 64 On Entrance 19 | . 7 3 10 10 14 52 58 Avg Prop Armor Cover (%) 6 | . 5 . . . . . 7 Naked Turns . | . . . . . . . . Heaviest Build 40 | 15 20 25 25 26 29 31 40 Greatest Support 43 | 26 26 10 10 17 31 40 43 Greatest Overweight (x) 8 | 2 2 2 2 3 2 . 8 Average Overweight (x) . | . 1 1 2 . . . . Largest Inventory Capacity 10 | 8 10 10 10 10 10 10 10 Average Capacity 9 | 7 9 10 10 10 10 10 9 Most Carried 10 | 5 8 5 5 10 10 10 10 Average Carried 7 | 2 6 4 5 5 9 9 8 Final Capacity 10 | 8 10 10 10 10 10 10 10 Final Carried 10 | 5 5 5 5 9 10 9 1 Class Distribution -------------------- 54% | Mutant 33% | Sprinter 8% | Scavenger-Sprinter 3% | Scavenger-Mutant Dominant Class ---------------- Mutant | -10/Materials Mutant | -9/Materials Mutant | -9/Mines Scavenger-Sprinter | -8/Materials Mutant | -7/Factory Sprinter | -6/Factory Sprinter | -5/Factory Resources | -11 -10 -9 -9 -8 -7 -6 -5 ----------- Run | Yrd Mat Mat Min Mat Fac Fac Fac Matter Collected 1725 | 304 211 125 . 215 125 159 586 Remotely . | . . . . . . . . Salvage Created 2060 | 140 249 349 . 322 125 159 716 Parts 94 | 5 11 24 . 25 5 3 21 Haulers Intercepted 4 | . 1 1 . 1 . 1 . Recyclers Shooed . | . . . . . . . . Parts Field Recycled . | . . . . . . . . Retrieved Matter . | . . . . . . . . Parts Self-Destructed . | . . . . . . . . Prevented . | . . . . . . . . Parts Restored . | . . . . . . . . Kills | -11 -10 -9 -9 -8 -7 -6 -5 ------- Run | Yrd Mat Mat Min Mat Fac Fac Fac Combat Hostiles Destroyed 45 | . 5 10 . 14 2 1 13 Melee 5 | . . . . . 1 . 4 Guns 5 | . 5 . . . . . . Cannons 3 | . . 2 . 1 . . . AOE 23 | . . 8 . 13 . . 2 Classes Destroyed 13 | 2 5 3 . 1 . 1 1 Worker 6 | . . 1 . 1 2 1 1 Builder 2 | . . . . 1 . . 1 Tunneler 4 | 3 . . . 1 . . . Hauler 4 | . 1 1 . 1 . 1 . Recycler 5 | 1 . 2 . 1 . . 1 Operator 2 | . 1 . . . . . 1 Watcher 5 | . 1 . . 1 1 . 2 Swarmer 16 | . 2 4 . 6 . . 4 Grunt 15 | . 3 3 . 7 1 . 1 Brawler 1 | . . 1 . . . . . Sentry 7 | . . 2 . 1 1 . 3 Hunter 1 | . . . . . . 1 . Programmer 5 | . . . . . . . 5 Best Kill Streak 14 | 4 2 14 . 8 2 2 4 Combat Bots Only 10 | . 2 10 . 4 1 1 4 Max Kills in Single Turn 3 | 1 1 3 . 3 1 1 2 Gunslinging . | . . . . . . . . Exploded 3 | . . 3 . 3 . . 2 Melee 1 | . . . . . 1 . 1 Uniques/NPCs Destroyed . | . . . . . . . . Combat | -11 -10 -9 -9 -8 -7 -6 -5 -------- Run | Yrd Mat Mat Min Mat Fac Fac Fac Hostile Shots Fired 423 | . 86 15 3 34 91 21 173 Missed 139 | . 22 4 1 16 38 5 53 Hits 284 | . 64 11 2 18 53 16 120 Projectile 284 | . 64 11 2 18 53 16 120 Critical Strikes 9 | . . 2 . 1 . . 6 Damage Taken 4886 | . 727 295 20 409 478 291 2666 Core 1633 | . 215 95 10 198 67 31 1017 Absorbed by Shields . | . . . . . . . . Core Remaining (%) 72 | 100 14 . 73 64 90 96 . Volleys Fired 90 | 8 38 9 . 25 6 . 4 Largest 2 | 2 2 2 . 2 1 . 2 Hottest 98 | 70 70 98 . 98 30 . 76 Shots Fired 151 | 16 73 17 . 33 6 . 6 Gun 90 | 16 73 . . 1 . . . Cannon 19 | . . 8 . 7 . . 4 Launcher 42 | . . 9 . 25 6 . 2 Special . | . . . . . . . . Kinetic 50 | 8 38 . . . . . 4 Thermal 59 | 8 35 8 . 8 . . . Explosive 42 | . . 9 . 25 6 . 2 Electromagnetic . | . . . . . . . . Robot Hit Streak 15 | 5 11 6 . 15 8 . 3 Robot Miss Streak 5 | 2 3 5 . 2 . . 1 Penetration Max . | . . . . . . . . Secondary Targets 1 | . 1 . . . . . . Max Gunslinging Chain 1 | . 1 . . . . . . Shots Hit Robots 137 | 10 50 7 . 20 9 6 35 Core Hits 89 | 5 16 21 . 36 6 1 4 Critical Kills 1 | . . . . . . 1 . Critical Parts Destroyed 13 | . . . . . 2 1 10 Critical Strikes 17 | 1 2 . . . 2 2 10 Burn 3 | 1 2 . . . . . . Smash 14 | . . . . . 2 2 10 Melee Attacks 92 | . . . . . 14 15 63 Impact 92 | . . . . . 14 15 63 Slashing . | . . . . . . . . Piercing . | . . . . . . . . Sneak Attacks 8 | . . . . . 2 2 4 Combat Hostiles . | . . . . . . . . Follow-up Attacks . | . . . . . . . . Damage Inflicted 6967 | 121 680 836 . 2095 458 462 2315 Guns 801 | 121 680 . . . . . . Cannons 236 | . . 81 . 101 . . 54 Explosions 3358 | . . 755 . 1994 128 . 481 Melee 2572 | . . . . . 330 462 1780 Ramming . | . . . . . . . . Kinetic 480 | 60 366 . . . . . 54 Thermal 1261 | 61 314 81 . 450 . . 355 Explosive 2654 | . . 755 . 1645 128 . 126 Electromagnetic . | . . . . . . . . Impact 2572 | . . . . . 330 462 1780 Slashing . | . . . . . . . . Piercing . | . . . . . . . . Highest Corruption 16 | . 4 . . 4 . . 16 Average Corruption 4 | . 3 . . 4 . . 7 Corruption Purged . | . . . . . . . . Corruption Blocked . | . . . . . . . . Effects 25 | . 11 . . 11 . . 3 Message Errors 7 | . 5 . . 1 . . 1 Matter Fused 6 | . 2 . . 3 . . 1 Heat Flow Errors 5 | . 2 . . 2 . . 1 Parts Rejected 1 | . 1 . . . . . . Data Loss (minor) 4 | . . . . 4 . . . Alerts 1 | . . . . 1 . . . Weapon Failures 1 | . 1 . . . . . . Overload Shots . | . . . . . . . . Overflow Damage 1569 | . . 31 . 115 251 119 1053 Projectiles . | . . . . . . . . Explosions 342 | . . 31 . 115 . . 196 Melee 1227 | . . . . . 251 119 857 Knockbacks 10 | . . . . . 1 3 6 Impact 9 | . . . . . 1 3 5 Kinetic 1 | . . . . . . . 1 Secondary . | . . . . . . . . Self-Inflicted Damage 462 | . . 81 . 118 43 . 220 Shots 10 | . . 2 . 3 1 . 4 Rammed . | . . . . . . . . Targets Rammed . | . . . . . . . . Kicked . | . . . . . . . . Crushed . | . . . . . . . . Highest Temperature 270 | 36 238 80 . 204 126 126 270 Average Temperature 63 | 15 72 38 . 71 42 41 83 Received Heat Transfer 840 | . 252 63 . 162 147 . 216 Effects 1 | . 1 . . . . . . Energy Bleed 1 | . 1 . . . . . . Siege Activations . | . . . . . . . . Martial Activations . | . . . . . . . . Shielding Activations . | . . . . . . . . Robots Disrupted . | . . . . . . . . Combat Hostiles . | . . . . . . . . Robots Corrupted 15 | . . . . . 2 2 11 Combat Hostiles 9 | . . . . . 1 1 7 Parts Fried 21 | . . . . . 2 2 17 Impact Corruptions 42 | . . . . . 6 4 32 Robots Melted . | . . . . . . . . Combat Hostiles . | . . . . . . . . Parts Melted . | . . . . . . . . Heat Transferred 2115 | 259 1073 148 . 385 . . 250 Parts Sabotaged . | . . . . . . . . Parts Stolen . | . . . . . . . . Parts Stripped . | . . . . . . . . Power Chain Reactions . | . . . . . . . . Alert | -11 -10 -9 -9 -8 -7 -6 -5 ------- Run | Yrd Mat Mat Min Mat Fac Fac Fac Maximum Alert Level 2 | . . 1 . 2 1 . . Low Security (%) 94 | 100 100 72 100 84 94 100 100 Level 1 3 | . . 27 . 6 5 . . Level 2 1 | . . . . 8 . . . Level 3 . | . . . . . . . . Level 4 . | . . . . . . . . Level 5 . | . . . . . . . . High Security . | . . . . . . . . Max Security . | . . . . . . . . Peak Influence 462 | 10 40 291 105 462 213 113 114 Initial 206 | . . . 105 37 206 111 48 Average 65 | 1 5 83 101 146 146 101 25 Influence Increases 2067 | 20 144 346 . 759 266 48 484 Destroy 0b10 Robot/C 900 | . 100 200 . 280 40 20 260 Destroy 0b10 Robot/NC 140 | 20 15 20 . 30 15 10 30 Destroy Leader 228 | . 24 42 . 64 12 12 74 Successful Hack 92 | . 5 25 . . 62 . . Disable Machine 135 | . . . . 90 . . 45 Destroy Structure 332 | . . 59 . 175 32 6 60 Partial Spotted 45 | . . . . . 30 . 15 Lose Combat Pursuer 195 | . . . . 120 75 . . Influence Decreases 1964 | 20 144 75 176 400 492 177 480 Entered New Map 640 | . . . 166 58 248 117 51 Time Decay 1037 | 20 118 65 10 262 214 50 298 Lost Part 285 | . 26 10 . 80 30 10 129 Purge Threat 2 | . . . . . . . 2 Squads Dispatched 10 | . 1 . . 2 3 . 4 Investigation 2 | . . . . . 1 . 1 Extermination 3 | . . . . . 1 . 2 Reinforcement 5 | . 1 . . 2 1 . 1 Assault . | . . . . . . . . Garrison . | . . . . . . . . Intercept . | . . . . . . . . Searches Triggered . | . . . . . . . . Construction Impeded 1 | . . . . . . . 1 Haulers Reinforced . | . . . . . . . . Active Scanning Responses . | . . . . . . . . Cargo Convoy Interrupts . | . . . . . . . . Stealth | -11 -10 -9 -9 -8 -7 -6 -5 --------- Run | Yrd Mat Mat Min Mat Fac Fac Fac Distress Signals 5 | . 1 . . 2 . . 2 Communications Jammed . | . . . . . . . . Distress Signals . | . . . . . . . . Times Spotted 104 | . 15 12 3 28 13 3 30 Peak Tracking Total 9 | . 5 5 3 9 7 3 9 Tactical Retreats 6 | . . . . 3 2 . 1 ECM-based Alert Blocks 8 | . . . . . . . 8 Traps | -11 -10 -9 -9 -8 -7 -6 -5 ------- Run | Yrd Mat Mat Min Mat Fac Fac Fac Traps Triggered 7 | . 3 . . . 1 . 3 Indirectly . | . . . . . . . . Trap Hack Attempts . | . . . . . . . . Triggered . | . . . . . . . . Disarmed . | . . . . . . . . Reprogrammed . | . . . . . . . . Reused . | . . . . . . . . Traps Extracted . | . . . . . . . . Installed . | . . . . . . . . Triggered . | . . . . . . . . Machines | -11 -10 -9 -9 -8 -7 -6 -5 ---------- Run | Yrd Mat Mat Min Mat Fac Fac Fac Machines Disabled 9 | . . . . 6 . . 3 Max in Single Turn 2 | . . . . 2 . . 2 Garrison Access 2 | . . . . . 1 . 1 Machines Repaired . | . . . . . . . . Machines Dismantled . | . . . . . . . . Machines Sabotaged . | . . . . . . . . Overloaded Fab Kills . | . . . . . . . . Hacking | -11 -10 -9 -9 -8 -7 -6 -5 --------- Run | Yrd Mat Mat Min Mat Fac Fac Fac Machines Accessed 15 | . 1 2 . . 4 1 7 Terminals 8 | . 1 2 . . 2 . 3 Fabricators . | . . . . . . . . Repair Stations . | . . . . . . . . Recycling Units . | . . . . . . . . Scanalyzers 4 | . . . . . 1 1 2 Garrison Access 3 | . . . . . 1 . 2 Total Hacks 32 | . 3 4 . . 7 1 17 Successful 13 | . 1 3 . . 4 1 4 Failed 19 | . 2 1 . . 3 . 13 Catastrophic 2 | . . . . . . . 2 Database Lockouts . | . . . . . . . . Manual 13 | . 3 4 . . 4 . 2 Terminals 19 | . 3 4 . . 4 . 8 Fabricators . | . . . . . . . . Repair Stations . | . . . . . . . . Recycling Units . | . . . . . . . . Scanalyzers 7 | . . . . . 2 1 4 Garrison Access 6 | . . . . . 1 . 5 Terminal Hacks 2 | . . 1 . . . . 1 Branch Access Points 1 | . . 1 . . . . . Unreport Threat 1 | . . . . . . . 1 Fabricator Hacks . | . . . . . . . . Repair Station Hacks . | . . . . . . . . Recycling Unit Hacks . | . . . . . . . . Scanalyzer 5 | . . . . . 2 1 2 Retrieve Study 5 | . . . . . 2 1 2 Garrison Access Hacks 2 | . . . . . 1 . 1 Seal Access 2 | . . . . . 1 . 1 Unauthorized Hacks 4 | . 1 2 . . 1 . . Terminals 4 | . 1 2 . . 1 . . Botnet 4 | . 1 2 . . 1 . . Fabricators . | . . . . . . . . Repair Stations . | . . . . . . . . Recycling Units . | . . . . . . . . Scanalyzers . | . . . . . . . . Garrison Access . | . . . . . . . . Data Cores Recovered 1 | . . . . . . . 1 Used . | . . . . . . . . Hacking Detections 12 | . 1 2 . . 3 . 6 Full Trace Events 2 | . . . . . 1 . 1 Feedback Events . | . . . . . . . . Feedback Blocked . | . . . . . . . . Robot Schematics Acquired . | . . . . . . . . Robots Built . | . . . . . . . . Authchips . | . . . . . . . . Time . | . . . . . . . . Total Robot Build Rating . | . . . . . . . . Part Schematics Acquired . | . . . . . . . . Parts Built . | . . . . . . . . Authchips . | . . . . . . . . Time . | . . . . . . . . Total Part Build Rating . | . . . . . . . . Part Studies Acquired 5 | . . . . . 2 1 2 Parts Repaired . | . . . . . . . . Time . | . . . . . . . . Parts Recycled . | . . . . . . . . Recycled Matter . | . . . . . . . . Retrieved Matter . | . . . . . . . . Retrieved Components . | . . . . . . . . Parts Scanalyzed . | . . . . . . . . Part Schematics Acquired . | . . . . . . . . Parts Damaged . | . . . . . . . . Bothacking | -11 -10 -9 -9 -8 -7 -6 -5 ------------ Run | Yrd Mat Mat Min Mat Fac Fac Fac Used RIF Installer . | . . . . . . . . Robots Hacked . | . . . . . . . . Non-combat . | . . . . . . . . Combat . | . . . . . . . . Robot Hacks Applied . | . . . . . . . . Relay Couplers Released . | . . . . . . . . Fabnet Peak Effective % . | . . . . . . . . Robots Rewired . | . . . . . . . . Allies Hacked . | . . . . . . . . Hacks Repelled . | . . . . . . . . Allies | -11 -10 -9 -9 -8 -7 -6 -5 -------- Run | Yrd Mat Mat Min Mat Fac Fac Fac Total Allies . | . . . . . . . . Largest Group . | . . . . . . . . Highest-Rated Group . | . . . . . . . . Highest-Rated Ally . | . . . . . . . . Total Orders . | . . . . . . . . Ally Attacks . | . . . . . . . . Total Damage . | . . . . . . . . Kills . | . . . . . . . . Allies Corrupted . | . . . . . . . . Allies Melted . | . . . . . . . . Intel | -11 -10 -9 -9 -8 -7 -6 -5 ------- Run | Yrd Mat Mat Min Mat Fac Fac Fac Active Infowar (turns) 929 | 69 374 . . 466 . . 20 Terrain 466 | . . . . 466 . . . Seismic 443 | 69 374 . . . . . . ECM 20 | . . . . . . . 20 Robot Analysis Total . | . . . . . . . . Derelict Logs Recovered . | . . . . . . . . Drone Launches . | . . . . . . . . Drone Recoveries . | . . . . . . . . Exploration | -11 -10 -9 -9 -8 -7 -6 -5 ------------- Run | Yrd Mat Mat Min Mat Fac Fac Fac Turns Passed 3189 | 111 761 191 31 563 452 113 967 Spaces Moved 3175 | 80 395 166 29 407 714 284 1100 Core 61 | 8 . . . . . . 53 Treads . | . . . . . . . . Legs . | . . . . . . . . Wheels 436 | 72 130 166 29 39 . . . Hover . | . . . . . . . . Flight 2678 | . 265 . . 368 714 284 1047 Fastest Speed 20 | 50 80 80 110 29 20 20 20 Average Speed 59 | 88 154 95 110 71 47 20 30 Slowest Speed 450 | 150 197 110 110 277 175 20 450 Overloaded Moves . | . . . . . . . . Propulsion Burnouts . | . . . . . . . . Robots Hopped 4 | . . . . . 3 . 1 Potential Cave-ins 6 | . . . . . . . 6 Cave-ins Triggered . | . . . . . . . . Exploration Rate (%) 22 | 3 49 23 10 40 21 8 28 Regions Visited 7 Branch Regions 1 Pre-discovered Areas . | . . . . . . . . Known Exits Taken 6 | . 1 1 1 1 1 1 . Unknown Exits Taken 1 | 1 . . . . . . . Scrap Searched . | . . . . . . . . Spaces Dug 47 | . . . . 7 10 6 24 Terrain Destroyed 348 | . . 58 . 213 36 6 35 Melee 40 | . . . . . 10 6 24 Projectile . | . . . . . . . . AOE 308 | . . 58 . 213 26 . 11 Terrain Rammed . | . . . . . . . . Walls Destroyed . | . . . . . . . . Machines Disabled . | . . . . . . . . Actions | -11 -10 -9 -9 -8 -7 -6 -5 --------- Run | Yrd Mat Mat Min Mat Fac Fac Fac Total 4119 | 99 471 179 28 647 788 309 1598 Wait 608 | . 14 . . 180 32 . 382 Move 3160 | 79 394 165 28 406 707 283 1098 Hop 4 | . . . . . 3 . 1 Pick Up 39 | 4 8 1 . 9 8 4 5 Fast Attach 42 | 7 2 3 . 8 9 . 13 Attach 27 | . 7 1 . 5 2 3 9 Detach 7 | . 1 . . 5 . . 1 Swap 15 | 1 2 . . 3 2 2 5 Drop 25 | . 5 . . 6 5 2 7 Fire 90 | 8 38 9 . 25 6 . 4 Melee 92 | . . . . . 14 15 63 Ram . | . . . . . . . . Kick . | . . . . . . . . Crush . | . . . . . . . . Escape Stasis 10 | . . . . . . . 10 Rewire . | . . . . . . . . Trap . | . . . . . . . . Miscellaneous . | . . . . . . . . Route ------- -11/Scrapyard -10/Materials (discovered 3 exits: *Mat x2 / [*Sub]) -9/Materials (discovered 3 exits: *Min / *Sto x2) -9/Mines -8/Materials -7/Factory -6/Factory -5/Factory History --------- Turn | Location | Event 14 | -11/Scrapyard | Discovered new exit (range 16) 112 | -11/Scrapyard | Entered Materials 243 | -10/Materials | Discovered new exit (range 13) 305 | -10/Materials | Build established: Mutant 677 | -10/Materials | Discovered new exit (range 8) 734 | -10/Materials | Identified exit to Materials 746 | -10/Materials | Discovered new exit (range 9) 852 | -10/Materials | Core integrity fell below 50% 872 | -10/Materials | Core integrity fell below 20% 873 | -10/Materials | Entered another Materials area 873 | -9/Materials | Evolved 2 slots: Propulsion x2 900 | -9/Materials | Lost 6 parts (1p2n3w) 948 | -9/Materials | Identified exit to Mines 948 | -9/Materials | Identified exit to Storage 1048 | -9/Materials | Destroyed 10 combat bots 1064 | -9/Materials | Entered Mines 1084 | -9/Mines | Discovered new exit (range 11) 1088 | -9/Mines | Met a Derelict bent on vengeance 1094 | -9/Mines | Identified exit to Materials 1095 | -9/Mines | Entered Materials 1095 | -8/Materials | Evolved 2 slots: Utility x2 1617 | -8/Materials | Discovered new exit (range 10) 1638 | -8/Materials | Lost 7 parts (1p5n1u) 1656 | -8/Materials | Identified exit to Factory 1658 | -8/Materials | Entered Factory 1658 | -7/Factory | Evolved 2 slots: Propulsion x2 1949 | -7/Factory | Lost 3 parts (1p1u1w) 2103 | -7/Factory | Discovered new exit (range 4) 2106 | -7/Factory | Identified exit to Factory 2110 | -7/Factory | Entered another Factory area 2110 | -6/Factory | Evolved 2 slots: Power x1, Utility x1 2215 | -6/Factory | Discovered new exit (range 6) 2223 | -6/Factory | Identified exit to Factory 2223 | -6/Factory | Entered another Factory area 2223 | -5/Factory | Evolved 2 slots: Utility x2 2225 | -5/Factory | Build established: Sprinter 2281 | -5/Factory | Spotted B-75 Beast 2997 | -5/Factory | Lost 3 parts (1p1n1u) 3102 | -5/Factory | System corruption reached 10% 3103 | -5/Factory | Core integrity fell below 50% 3135 | -5/Factory | Lost 10 parts (6n2u2w) 3159 | -5/Factory | Core integrity fell below 20% 3190 | -5/Factory | Destroyed by Y-64 Sentinel with KE Penetrator Last Messages --------------- corrupted. 03182_ Field Recycling Unit fried. 03182_ Imp. Ion Engine fried. 03182_ Com. Wheel fried. 03182_ R-10 Processor collects Antigrav System. 03184_ U-05 Engineer lays Concrete. 03184_ Sneak attack on U-05 Engineer. 03184_ Destroyed Welding Torch. 03184_ Destroyed Terrain Scan Processor. 03184_ U-05 Engineer system corrupted by crushing effect. 03184_ Wheel fried. 03184_ Terrain Scanner fried. 03184_ U-05 Engineer destroyed. 03184_ Penetrated by Slug. 03184_ Adv. Targeting Computer destroyed. 03185_ Acquired 14 matter. 03185_ R-10 Processor collects Hpw. Shock Rifle. 03187_ Acquired 19 matter. 03190_ K-01 Serf collects debris. Map ----- +----------------------------------------------------+ | ?????????????????????????????????????????????????? | | ?????????????????????????????????????????????????? | | ?????????????????????????????????????????????????? | | ?????????????????????????????????????????????????? | | ?????????????????????????????????????????????????? | | ?????????????????????????????????????????????????? | | ?????????????????????????????????????????????????? | | ?????????????????????????????????????????????????? | | ?????????????????????????????????????????????????? | | ?????????????????????????????????????????????????? | | ?????????????????????????????????????????????????? | | ?????????????????????????????????????????????????? | | ?????????????????????????????????????????????????? | | ?????????????????????????????????????????????????? | | ?????????????????????????????????????????????????? | | ?????????????????????????????????????????????????? | | ?????????????????????????????????????????????????? | | ???????????????#+????#+#????????##???????????????? | | ???????????????# ????# ######### #??????????###??? | | ?????????????### ##### ## #????#######"#### | | ?????????????# ## !!! #????#" ! = # | | ?????######### =# !! #????## # | | ?????+ |k " !! #?????# ! # | | ?????# [# #?????# # | | ?????# #Y!T """ #????## # | | ?????+ #@ """ #????#" ! # | | ?????# !== # "" """ #????## # | | ?????# !== # R #?????# ! # | | ????? === ##########?????#####+##### | | ?????????#### #????????????# ## | | ????????????# ]] ############### | | ????????????# ]] | | ????????????# ] | | ????????????# | | ????????????# ###############| | | ????????????# #?????????????# ] ## | | ????????????# #####"""""###????############ ### | | ????????????# ???? ?????# # ### | | ????????????# ??? """ """ ==???# """" """ + + | | ????????????#??? """ """ ==!??# """" "Y" # ### | | ????????????????? """ """ ==! ?# """" + #?# | | ??????????????????? ? ?# """" ! #####?# | | ????????????????????! """??"" ?# """" !#?????# | | ???????????????????? ""???????# """" ! #?????# | | ???????????????????? "????????# #?????## | | ???????????????????????????????############??????? | | ?????????????????????????????????????????????????? | | | | | | | +----------------------------------------------------+ Best States ------------- Heat Dissipation 59 Energy Generation 25 Energy Capacity 275 Matter Stores 300 Matter Capacity 300 Sight Range 16 Terrain Scan Range 16 Terrain Scan Density 10 ECM Strength 2 Additional Mass Support 9 Armor Coverage 375 Evasion (%) 74 Targeting Accuracy 8 Melee Accuracy 6 Offensive Hacking 14 Item Schematics ----------------- None Robot Schematics ------------------ None Fabricated ------------ Nothing Repaired ---------- Nothing Studied --------- Lgt. Deuterium Engine | -7/Factory | Hacked Power Maul | -7/Factory | Hacked Xenon Bombardment Thruster | -6/Factory | Hacked Missile Launcher | -5/Factory | Hacked Plasma Cutter | -5/Factory | Hacked Alien Tech Used ----------------- None Achievements -------------- None Challenges ------------ None Game ------ Seed SwarmPhysicsScanner Manual? 0 Play Time 00:34:54 Cumulative 115.6 hours Start 2026.07.04 @ 02:44:42 End 2026.07.04 @ 03:18:22 Sessions 1 Manual Loads 0 Difficulty Rogue Special Mode None Game No. 246 Rogue 246 Adventurer 0 Explorer 0 Win Type - Total 0 Types 0/0/0/0/0/0/0/0/0/0 Lore% 50 Gallery% 51 Achievement% 41 Wizard Run 0 Options --------- Layout 1 ASCII 0 Keyboard 1 Movement Arrows Keybinds 0 Fullscreen 2 Font 24/Smallcaps Map View 50x35 Zoom Use 0% Tactical HUD 1 Map Filters NONE Filters NONE Steam 1 RUN: c1d27629-6f70-4d5e-adfb-032d0ac27342